fUSD/lending_fUSD_20250608
["ID","MTS","AMOUNT","RATE_DAILY","PERIOD"]
[364979784,1749376239488,-480.0,0.00019178,2]
[364979786,1749376239498,-480.0,0.00019178,2]
[364979788,1749376239507,-492.14,0.00019178,2]
[364979790,1749376239516,-480.0,0.00019178,2]
[364979792,1749376239526,-480.0,0.00019178,2]
[364979794,1749376239535,-633.4,0.00019178,2]
[364979796,1749376239544,-828.14,0.00019178,2]
[364979798,1749376239554,-480.0,0.00019178,2]
[364979800,1749376239564,-263.31416128,0.00019178,2]
[364979802,1749376239579,-480.0,0.00019178,2]
[364979804,1749376239590,-480.0,0.00019178,2]
[364979806,1749376239599,-480.0,0.00019178,2]
[364979808,1749376239609,-480.0,0.00019178,2]
[364979810,1749376239618,-480.0,0.00019178,2]
[364979812,1749376239628,-480.0,0.00019178,2]
[364979814,1749376239637,-3187.5,0.00019178,2]
[364979816,1749376239646,-480.0,0.00019178,2]
[364979818,1749376239655,-480.0,0.00019178,2]
[364979820,1749376239665,-480.0,0.00019178,2]
[364979822,1749376239674,-480.0,0.00019178,2]
[364979824,1749376239684,-480.0,0.00019178,2]
[364979826,1749376239694,-480.0,0.00019178,2]
[364979828,1749376239703,-480.0,0.00019178,2]
[364979830,1749376239713,-480.0,0.00019178,2]
[364979831,1749376239723,-467.39868608,0.00019178,2]
[364979833,1749376239733,-422.10898995,0.00019178,2]
[364979835,1749376239743,-480.0,0.00019178,2]
[364979837,1749376239752,-480.0,0.00019178,2]
[364979839,1749376239761,-480.0,0.00019178,2]
[364979841,1749376239770,-435.33783173,0.00019178,2]
[364979843,1749376239780,-480.0,0.00019178,2]
[364979845,1749376239789,-4223.3,0.00019178,2]
[364979847,1749376239798,-480.0,0.00019178,2]
[364979848,1749376239808,-480.0,0.00019178,2]
[364979850,1749376239817,-480.0,0.00019178,2]
[364979852,1749376239827,-480.0,0.00019178,2]
[364979855,1749376239839,-480.0,0.00019178,2]
[364979857,1749376239848,-480.0,0.00019178,2]
[364979859,1749376239856,-480.0,0.00019178,2]
[364979861,1749376239865,-245.31919142,0.00019178,2]
[364979863,1749376239874,-480.0,0.00019178,2]
[364979865,1749376239883,-627.05,0.00019178,2]
[364979867,1749376239892,-531.79,0.00019178,2]
[364979869,1749376239902,-494.64348498,0.00019178,2]
[364979871,1749376239912,-585.46,0.00019178,2]
[364979873,1749376239920,-563.39,0.00019178,2]
[364979875,1749376239929,-480.0,0.00019178,2]
[364979876,1749376239938,-480.0,0.00019178,2]
[364979878,1749376239948,-480.0,0.00019178,2]
[364979880,1749376239957,-480.0,0.00019178,2]
[364979882,1749376239967,-3965.82,0.00019178,2]
[364979884,1749376239977,-1289.64,0.00019178,2]
[364979886,1749376239986,-480.0,0.00019178,2]
[364979888,1749376239995,-480.0,0.00019178,2]
[364979890,1749376240005,-480.0,0.00019178,2]
[364979892,1749376240014,-480.0,0.00019178,2]
[364979894,1749376240023,-545.58,0.00019178,2]
[364979896,1749376240032,-480.0,0.00019178,2]
[364979898,1749376240042,-159.26768705,0.00019178,2]
[364979900,1749376240051,-1800.0,0.000192,7]
[364979902,1749376240061,-163.80068012,0.00019239,2]
[364979903,1749376240070,-184.08412951,0.00019242,2]
[364979905,1749376240079,-750.31395864,0.00019242,2]
[364979907,1749376240088,-211.0,0.0001925,2]
[364979909,1749376240098,-659.6927,0.000193,2]
[364979911,1749376240107,-2800.0,0.000193,7]
[364979913,1749376240116,-537.4397,0.000193,2]
[364979915,1749376240127,-750.31395859,0.00019315,2]
[364979917,1749376240136,-53237.104505,0.00019339,2]
[364979919,1749376240146,-308.72746,0.00019339,2]
[364979921,1749376240155,-2768.3584198,0.00019339,2]
[364979923,1749376240164,-929.77,0.00019341,2]
[364979925,1749376240173,-489.59,0.00019342,2]
[364979927,1749376240183,-480.0,0.00019342,2]
[364979929,1749376240192,-480.0,0.00019342,2]
[364979931,1749376240201,-480.0,0.00019342,2]
[364979933,1749376240210,-480.0,0.00019342,2]
[364979935,1749376240219,-480.0,0.00019342,2]
[364979937,1749376240228,-814.6,0.00019342,2]
[364979939,1749376240237,-441.18587858,0.00019342,2]
[364979941,1749376240247,-480.0,0.00019342,2]
[364979943,1749376240256,-480.0,0.00019342,2]
[364979944,1749376240265,-480.0,0.00019342,2]
[364979946,1749376240274,-480.0,0.00019342,2]
[364979948,1749376240283,-151.0,0.00019342,2]
[364979950,1749376240293,-224.98129257,0.00019342,2]
[364979952,1749376240303,-480.0,0.00019342,2]
[364979954,1749376240312,-480.0,0.00019342,2]
[364979956,1749376240321,-480.0,0.00019342,2]
[364979958,1749376240330,-480.0,0.00019342,2]
[364979960,1749376240339,-480.0,0.00019342,2]
[364979962,1749376240349,-475.63916869,0.00019342,2]
[364979964,1749376240358,-456.38804615,0.00019342,2]
[364979966,1749376240367,-480.0,0.00019342,2]
[364979968,1749376240376,-1000.0,0.00019342,2]
[364979970,1749376240385,-480.0,0.00019342,2]
[364979972,1749376240394,-480.0,0.00019342,2]
[364979974,1749376240403,-480.0,0.00019342,2]
[364979975,1749376240414,-480.0,0.00019342,2]
[364979977,1749376240425,-458.84829027,0.00019342,2]
[364979979,1749376240434,-480.0,0.00019342,2]
[364979981,1749376240444,-480.0,0.00019342,2]
[364979983,1749376240454,-480.0,0.00019342,2]
[364979986,1749376240464,-538.58835635,0.00019342,2]
[364979987,1749376240474,-592.22,0.00019342,2]
[364979989,1749376240483,-480.0,0.00019342,2]
[364979991,1749376240494,-151.0,0.00019342,2]
[364979993,1749376240503,-264.732365,0.00019342,2]
[364979995,1749376240512,-480.0,0.00019342,2]
[364979997,1749376240521,-480.0,0.00019342,2]
[364979999,1749376240531,-713.51,0.00019342,2]
[364980001,1749376240540,-480.0,0.00019342,2]
[364980003,1749376240550,-480.0,0.00019342,2]
[364980005,1749376240560,-480.0,0.00019342,2]
[364980007,1749376240570,-480.0,0.00019342,2]
[364980009,1749376240579,-480.0,0.00019342,2]
[364980011,1749376240588,-688.81,0.00019342,2]
[364980013,1749376240597,-480.0,0.00019342,2]
[364980015,1749376240606,-841.94,0.00019342,2]
[364980017,1749376240615,-480.0,0.00019342,2]
[364980019,1749376240625,-480.0,0.00019342,2]
[364980021,1749376240634,-847.05,0.00019342,2]
[364980023,1749376240642,-480.0,0.00019342,2]
[364980025,1749376240652,-480.0,0.00019342,2]
[364980027,1749376240661,-480.0,0.00019342,2]
[364980029,1749376240674,-480.0,0.00019342,2]
[364980031,1749376240683,-480.0,0.00019342,2]
[364980033,1749376240692,-1531.62,0.00019342,2]
[364980035,1749376240701,-1843.9,0.00019342,2]
[364980037,1749376240710,-478.5858841,0.00019342,2]
[364980039,1749376240720,-480.0,0.00019342,2]
[364980041,1749376240729,-480.0,0.00019342,2]
[364980043,1749376240742,-480.0,0.00019342,2]
[364980045,1749376240751,-800.31,0.00019342,2]
[364980047,1749376240759,-768.17,0.00019342,2]
[364980049,1749376240770,-650.45,0.00019342,2]
[364980051,1749376240780,-1381.63,0.00019342,2]
[364980053,1749376240790,-480.0,0.00019342,2]
[364980055,1749376240798,-480.0,0.00019342,2]
[364980056,1749376240809,-480.0,0.00019342,2]
[364980076,1749376240996,-480.0,0.00019342,2]
[364980079,1749376241007,-1781.08,0.00019342,2]
[364980081,1749376241017,-3238.68,0.00019342,2]
[364980082,1749376241026,-588.96,0.00019342,2]
[364980084,1749376241036,-480.0,0.00019342,2]
[364980086,1749376241045,-3292.76,0.00019342,2]
[364980088,1749376241054,-2439.56,0.00019342,2]
[364980090,1749376241063,-480.0,0.00019342,2]
[364980092,1749376241072,-480.0,0.00019342,2]
[364980094,1749376241082,-480.0,0.00019342,2]
[364980096,1749376241092,-984.13,0.00019342,2]
[364980098,1749376241101,-480.0,0.00019342,2]
[364980100,1749376241110,-32589.61204573,0.00019342,2]
[364980151,1749376241602,685.4,0.00016556,2]
[364980308,1749376243098,-200.0,0.00018471,2]
[364980311,1749376243108,-685.4,0.0001882,2]
[364980314,1749376243118,-2575.446,0.00018871,2]
[364980317,1749376243128,-153.18707652,0.00019078,2]
[364980320,1749376243137,-1651.66,0.00019178,2]
[364980323,1749376243146,-21662.64795427,0.00019342,2]
[364980325,1749376243156,-480.0,0.00019342,2]
[364980327,1749376243166,-986.88,0.00019342,2]
[364980329,1749376243175,-480.0,0.00019342,2]
[364980331,1749376243184,-480.0,0.00019342,2]
[364980333,1749376243193,-575.27,0.00019342,2]
[364980334,1749376243203,-965.73,0.00019342,2]
[364980336,1749376243212,-480.0,0.00019342,2]
[364980338,1749376243222,-300.0,0.00019342,2]
[364980341,1749376243232,-300.0,0.00019342,2]
[364980343,1749376243242,-480.0,0.00019342,2]
[364980344,1749376243251,-696.96,0.00019342,2]
[364980347,1749376243260,-480.0,0.00019342,2]
[364980348,1749376243270,-480.0,0.00019342,2]
[364980350,1749376243279,-492.14,0.00019342,2]
[364980352,1749376243288,-480.0,0.00019342,2]
[364980355,1749376243297,-480.0,0.00019342,2]
[364980356,1749376243307,-633.4,0.00019342,2]
[364980358,1749376243316,-828.14,0.00019342,2]
[364980360,1749376243325,-480.0,0.00019342,2]
[364980362,1749376243334,-480.0,0.00019342,2]
[364980364,1749376243343,-480.0,0.00019342,2]
[364980366,1749376243353,-480.0,0.00019342,2]
[364980368,1749376243362,-480.0,0.00019342,2]
[364980370,1749376243371,-478.72432793,0.00019342,2]
[364980372,1749376243381,-480.0,0.00019342,2]
[364980374,1749376243390,-3187.5,0.00019342,2]
[364980376,1749376243400,-480.0,0.00019342,2]
[364980378,1749376243409,-480.0,0.00019342,2]
[364980380,1749376243419,-480.0,0.00019342,2]
[364980382,1749376243428,-480.0,0.00019342,2]
[364980384,1749376243438,-480.0,0.00019342,2]
[364980386,1749376243447,-480.0,0.00019342,2]
[364980388,1749376243456,-480.0,0.00019342,2]
[364980390,1749376243466,-480.0,0.00019342,2]
[364980392,1749376243475,-480.0,0.00019342,2]
[364980394,1749376243484,-480.0,0.00019342,2]
[364980396,1749376243494,-480.0,0.00019342,2]
[364980398,1749376243503,-480.0,0.00019342,2]
[364980400,1749376243513,-4223.3,0.00019342,2]
[364980402,1749376243522,-480.0,0.00019342,2]
[364980404,1749376243530,-480.0,0.00019342,2]
[364980406,1749376243539,-480.0,0.00019342,2]
[364980408,1749376243548,-232.52304128,0.00019342,2]
[364980410,1749376243557,-480.0,0.00019342,2]
[364980411,1749376243567,-480.0,0.00019342,2]
[364980413,1749376243576,-480.0,0.00019342,2]
[364980415,1749376243586,-174.08693709,0.00019342,2]
[364980417,1749376243595,-627.05,0.00019342,2]
[364980419,1749376243604,-531.79,0.00019342,2]
[364980421,1749376243614,-585.46,0.00019342,2]
[364980423,1749376243623,-563.39,0.00019342,2]
[364980425,1749376243632,-480.0,0.00019342,2]
[364980427,1749376243642,-480.0,0.00019342,2]
[364980429,1749376243651,-480.0,0.00019342,2]
[364980431,1749376243660,-480.0,0.00019342,2]
[364980433,1749376243669,-3965.82,0.00019342,2]
[364980435,1749376243678,-1289.64,0.00019342,2]
[364980437,1749376243687,-480.0,0.00019342,2]
[364980439,1749376243697,-480.0,0.00019342,2]
[364980441,1749376243706,-480.0,0.00019342,2]
[364980443,1749376243715,-322.7315456,0.00019342,2]
[364980445,1749376243725,-545.58,0.00019342,2]
[364980447,1749376243735,-480.0,0.00019342,2]
[364980449,1749376243746,-1651.66,0.00019342,2]
[364980451,1749376243755,-750.31395859,0.00019388,2]
[364980453,1749376243764,-3700.0,0.000194,7]
[364980455,1749376243774,-1036.75811785,0.00019438,2]
[364980457,1749376243784,-451.58294013,0.00019438,2]
[364980459,1749376243794,-202.0,0.0001944,2]
[364980461,1749376243803,-211.0,0.0001944,2]
[364980462,1749376243813,-212.0,0.0001944,2]
[364980465,1749376243824,-1584.38403661,0.00019456,2]
[364980466,1749376243835,-750.31395859,0.00019461,2]
[364980468,1749376243845,-300.0,0.00019492,2]
[364980470,1749376243854,-43393.5650271,0.00019493,2]
[364980472,1749376243863,-308.72746,0.00019493,2]
[364980474,1749376243873,-2256.4890075,0.00019493,2]
[364980476,1749376243883,-300.0,0.00019493,2]
[364980478,1749376243892,-300.0,0.00019493,2]
[364980480,1749376243903,-500.0,0.00019494,2]
[364980482,1749376243912,-4700.0,0.000195,7]
[364980484,1749376243921,-300.0,0.00019504,2]
[364980486,1749376243931,-500.0,0.00019505,2]
[364980488,1749376243941,-929.77,0.00019505,2]
[364980490,1749376243950,-929.77,0.00019505,2]
[364980492,1749376243961,-300.0,0.00019505,2]
[364980494,1749376243970,-300.0,0.00019505,2]
[364980496,1749376243980,-2831.01771236,0.00019506,2]
[364980498,1749376243990,-120985.70424006,0.00019506,2]
[364980500,1749376244003,-333.61754588,0.00019506,2]
[364980503,1749376244022,-340.30977879,0.00019506,2]
[364980505,1749376244033,-605.89296583,0.00019506,2]
[364980569,1749376246781,-241.34984982,0.00019177,2]
[364980570,1749376246790,-771.78,0.00019178,2]
[364980571,1749376246800,-300.0,0.00019341,2]
[364980572,1749376246811,-771.78,0.00019342,2]
[364980573,1749376246823,-17319.38748788,0.00019506,2]
[364980574,1749376246866,-1076.70404442,0.00019506,2]
[364980582,1749377142409,325.94,0.00013699,2]
[364980584,1749377171620,205.0,0.00016471,2]
[364980585,1749377291499,640.81,0.00016279,2]
[364980586,1749377416773,58047.00055613,0.0001705,2]
[364980597,1749377438483,-159.19,0.00018243,2]
[364980598,1749377438493,-157.97,0.00018307,2]
[364980599,1749377438502,-1000.0,0.00018477,2]
[364980600,1749377438511,-150.0,0.00018538,7]
[364980601,1749377438520,-640.81,0.00018543,2]
[364980602,1749377438530,-883.0,0.00018675,2]
[364980623,1749377438744,-167.69,0.00018874,2]
[364980625,1749377438754,-699.94190006,0.00018875,2]
[364980627,1749377438763,-300.0,0.00018887,2]
[364980629,1749377438772,-300.0,0.00018887,2]
[364980631,1749377438782,-1200.0,0.00018887,2]
[364980633,1749377438792,-150.0,0.00018888,2]
[364980635,1749377438801,-150.0,0.00018888,2]
[364980637,1749377438810,-150.0,0.00018888,2]
[364980639,1749377438820,-1164.0,0.00018888,2]
[364980641,1749377438829,-766.959,0.00018888,2]
[364980643,1749377438838,-2325.0,0.000189,2]
[364980645,1749377438848,-207.4,0.00018989,2]
[364980647,1749377438857,-1957.85600001,0.00018989,2]
[364980649,1749377438866,-1747.0,0.00018992,2]
[364980651,1749377438877,-4146.4,0.00019,2]
[364980653,1749377438886,-4146.4,0.00019,2]
[364980655,1749377438896,-4146.4,0.00019,2]
[364980657,1749377438906,-4146.4,0.00019,2]
[364980659,1749377438915,-4146.4,0.00019,2]
[364980661,1749377438924,-500.0,0.00019,2]
[364980663,1749377438933,-500.0,0.00019,2]
[364980665,1749377438942,-796.63,0.00019041,2]
[364980667,1749377438951,-796.15,0.00019041,2]
[364980669,1749377438961,-1863.92408374,0.00019042,2]
[364980671,1749377438970,-253.596,0.00019078,2]
[364980672,1749377438979,-2676.29555994,0.00019078,2]
[364980674,1749377438989,-554.0,0.00019087,2]
[364980676,1749377438998,-157.80422794,0.000191,2]
[364980678,1749377439008,-796.63,0.000191,2]
[364980680,1749377439018,-659.0,0.000191,2]
[364980682,1749377439027,-796.63,0.000191,2]
[364980684,1749377439037,-400.0,0.000191,6]
[364980686,1749377439047,-537.0,0.000191,2]
[364980688,1749377439057,-2500.0,0.00019105,2]
[364980690,1749377439066,-329.0,0.00019133,2]
[364980692,1749377439076,-163.80068012,0.00019142,2]
[364980694,1749377439085,-1000.0,0.00019166,2]
[364980696,1749377439094,-151.0,0.00019166,2]
[364980698,1749377439104,-500.0,0.00019166,2]
[364980700,1749377439113,-500.0,0.00019166,2]
[364980702,1749377439123,-151.0,0.00019166,2]
[364980704,1749377439133,-500.0,0.00019166,2]
[364980706,1749377439142,-500.0,0.00019166,2]
[364980708,1749377439152,-500.0,0.00019166,2]
[364980710,1749377439161,-500.0,0.00019166,2]
[364980712,1749377439170,-500.0,0.00019166,2]
[364980714,1749377439183,-500.0,0.00019166,2]
[364980716,1749377439192,-500.0,0.00019166,2]
[364980718,1749377439203,-500.0,0.00019166,2]
[364980720,1749377439214,-500.0,0.00019166,2]
[364980722,1749377439223,-500.0,0.00019166,2]
[364980724,1749377439233,-500.0,0.00019166,2]
[364980726,1749377439242,-500.0,0.00019166,2]
[364980728,1749377439252,-500.0,0.00019166,2]
[364980730,1749377439261,-500.0,0.00019166,2]
[364980732,1749377439270,-500.0,0.00019166,2]
[364980734,1749377439279,-500.0,0.00019166,2]
[364980735,1749377439289,-500.0,0.00019166,2]
[364980737,1749377439299,-500.0,0.00019166,2]
[364980739,1749377439308,-151.0,0.00019166,2]
[364980741,1749377439318,-500.0,0.00019166,2]
[364980743,1749377439328,-668.65185757,0.00019166,2]
[364980745,1749377439338,-500.0,0.00019166,2]
[364980747,1749377439347,-500.0,0.00019166,2]
[364980749,1749377439357,-500.0,0.00019166,2]
[364980751,1749377439366,-500.0,0.00019166,2]
[364980753,1749377439376,-500.0,0.00019166,2]
[364980755,1749377439385,-500.0,0.00019166,2]
[364980757,1749377439395,-500.0,0.00019166,2]
[364980759,1749377439406,-500.0,0.00019166,2]
[364980761,1749377439416,-500.0,0.00019166,2]
[364980763,1749377439425,-300.0,0.00019166,2]
[364980765,1749377439434,-300.0,0.00019166,2]
[364980766,1749377439443,-300.0,0.00019166,2]
[364980768,1749377439453,-300.0,0.00019166,2]
[364980769,1749377439463,-300.0,0.00019166,2]
[364980770,1749377439472,-300.0,0.00019166,2]
[364980771,1749377439481,-325.30892338,0.00019166,2]
[364980772,1749377439491,-151.0,0.00019166,2]
[364980773,1749377439501,-2676.29555993,0.00019169,2]
[364980774,1749377439510,-165.070732,0.00019177,2]
[364980775,1749377439520,-303.68630808,0.00019177,2]
[364980776,1749377439530,-201.66529948,0.00019177,2]
[364980777,1749377439539,-268.81486424,0.00019177,2]
[364980778,1749377439548,-228.06975737,0.00019177,2]
[364980779,1749377439558,-480.0,0.00019178,2]
[364980780,1749377439570,-480.0,0.00019178,2]
[364980782,1749377439580,-480.0,0.00019178,2]
[364980784,1749377439589,-448.18364411,0.00019178,2]
[364980786,1749377439599,-480.0,0.00019178,2]
[364980788,1749377439610,-260.24025343,0.00019178,2]
[364980790,1749377439619,-480.0,0.00019178,2]
[364980792,1749377439629,-542.87,0.00019178,2]
[364980794,1749377439638,-480.0,0.00019178,2]
[364980796,1749377439647,-480.0,0.00019178,2]
[364980798,1749377439657,-480.0,0.00019178,2]
[364980800,1749377439667,-1000.0,0.00019178,2]
[364980802,1749377439676,-480.0,0.00019178,2]
[364980804,1749377439685,-480.0,0.00019178,2]
[364980806,1749377439695,-480.0,0.00019178,2]
[364980808,1749377439704,-480.0,0.00019178,2]
[364980810,1749377439714,-571.06,0.00019178,2]
[364980812,1749377439723,-210.35219765,0.00019178,2]
[364980814,1749377439732,-480.0,0.00019178,2]
[364980816,1749377439742,-480.0,0.00019178,2]
[364980818,1749377439752,-480.0,0.00019178,2]
[364980820,1749377439761,-480.0,0.00019178,2]
[364980822,1749377439770,-480.0,0.00019178,2]
[364980824,1749377439779,-707.47,0.00019178,2]
[364980826,1749377439789,-480.0,0.00019178,2]
[364980828,1749377439798,-480.0,0.00019178,2]
[364980830,1749377439807,-480.0,0.00019178,2]
[364980832,1749377439816,-1403.98,0.00019178,2]
[364980834,1749377439826,-480.0,0.00019178,2]
[364980836,1749377439835,-480.0,0.00019178,2]
[364980838,1749377439844,-480.0,0.00019178,2]
[364980840,1749377439854,-480.0,0.00019178,2]
[364980842,1749377439863,-1182.17,0.00019178,2]
[364980844,1749377439873,-150.0,0.00019178,2]
[364980846,1749377439882,-150.0,0.00019178,2]
[364980848,1749377439892,-150.0,0.00019178,2]
[364980850,1749377439901,-480.0,0.00019178,2]
[364980852,1749377439911,-480.0,0.00019178,2]
[364980853,1749377439920,-1514.03,0.00019178,2]
[364980855,1749377439929,-480.0,0.00019178,2]
[364980857,1749377439938,-480.0,0.00019178,2]
[364980859,1749377439947,-631.4,0.00019178,2]
[364980861,1749377439956,-480.0,0.00019178,2]
[364980863,1749377439965,-480.0,0.00019178,2]
[364980865,1749377439975,-3018.37,0.00019178,2]
[364980867,1749377439985,-776.47,0.00019178,2]
[364980869,1749377439995,-480.0,0.00019178,2]
[364980871,1749377440004,-480.0,0.00019178,2]
[364980873,1749377440013,-480.0,0.00019178,2]
[364980875,1749377440023,-480.0,0.00019178,2]
[364980877,1749377440032,-480.0,0.00019178,2]
[364980879,1749377440042,-480.0,0.00019178,2]
[364980881,1749377440051,-480.0,0.00019178,2]
[364980883,1749377440060,-733.61,0.00019178,2]
[364980885,1749377440069,-480.0,0.00019178,2]
[364980887,1749377440079,-596.24,0.00019178,2]
[364980889,1749377440089,-704.16,0.00019178,2]
[364980891,1749377440098,-1690.24,0.00019178,2]
[364980893,1749377440108,-480.0,0.00019178,2]
[364980895,1749377440118,-480.0,0.00019178,2]
[364980897,1749377440128,-480.0,0.00019178,2]
[364980899,1749377440138,-480.0,0.00019178,2]
[364980901,1749377440147,-480.0,0.00019178,2]
[364980903,1749377440157,-1266.49,0.00019178,2]
[364980904,1749377440166,-480.0,0.00019178,2]
[364980906,1749377440178,-539.88,0.00019178,2]
[364980908,1749377440188,-480.0,0.00019178,2]
[364980910,1749377440197,-480.0,0.00019178,2]
[364980912,1749377440207,-1632.66,0.00019178,2]
[364980915,1749377440217,-480.0,0.00019178,2]
[364980917,1749377440227,-1273.52722698,0.00019178,2]
[364981016,1749377441367,205.0,0.00016471,2]
[364981176,1749377443296,-153.18707652,0.00019078,2]
[364981178,1749377443306,-1695.26277302,0.00019178,2]
[364981180,1749377443315,-2921.88,0.00019178,2]
[364981182,1749377443325,-480.0,0.00019178,2]
[364981184,1749377443334,-480.0,0.00019178,2]
[364981186,1749377443344,-2236.27,0.00019178,2]
[364981187,1749377443353,-580.61,0.00019178,2]
[364981189,1749377443363,-480.0,0.00019178,2]
[364981191,1749377443372,-480.0,0.00019178,2]
[364981193,1749377443383,-885.25,0.00019178,2]
[364981195,1749377443392,-480.0,0.00019178,2]
[364981197,1749377443402,-902.12,0.00019178,2]
[364981199,1749377443411,-904.64,0.00019178,2]
[364981201,1749377443420,-528.11472351,0.00019178,2]
[364981203,1749377443429,-49731.23,0.00019178,2]
[364981205,1749377443439,-357.15627434,0.00019178,2]
[364981207,1749377443448,-480.0,0.00019178,2]
[364981209,1749377443458,-638.88,0.00019178,2]
[364981211,1749377443467,-480.0,0.00019178,2]
[364981213,1749377443477,-527.33,0.00019178,2]
[364981214,1749377443486,-480.0,0.00019178,2]
[364981216,1749377443495,-480.0,0.00019178,2]
[364981218,1749377443504,-480.0,0.00019178,2]
[364981220,1749377443513,-1772.44,0.00019178,2]
[364981223,1749377443522,-480.0,0.00019178,2]
[364981226,1749377443531,-574.79,0.00019178,2]
[364981229,1749377443540,-480.0,0.00019178,2]
[364981232,1749377443549,-759.13,0.00019178,2]
[364981233,1749377443559,-746.72,0.00019178,2]
[364981235,1749377443568,-480.0,0.00019178,2]
[364981237,1749377443577,-480.0,0.00019178,2]
[364981239,1749377443585,-480.0,0.00019178,2]
[364981241,1749377443595,-480.0,0.00019178,2]
[364981243,1749377443605,-480.0,0.00019178,2]
[364981245,1749377443614,-480.0,0.00019178,2]
[364981247,1749377443623,-480.0,0.00019178,2]
[364981249,1749377443633,-443.82674609,0.00019178,2]
[364981251,1749377443642,-480.0,0.00019178,2]
[364981253,1749377443651,-480.0,0.00019178,2]
[364981255,1749377443660,-500.12,0.00019178,2]
[364981256,1749377443670,-480.0,0.00019178,2]
[364981258,1749377443679,-480.0,0.00019178,2]
[364981260,1749377443688,-480.0,0.00019178,2]
[364981262,1749377443697,-480.0,0.00019178,2]
[364981264,1749377443708,-480.0,0.00019178,2]
[364981266,1749377443717,-516.44,0.00019178,2]
[364981268,1749377443726,-3871.36,0.00019178,2]
[364981270,1749377443736,-480.0,0.00019178,2]
[364981272,1749377443745,-480.0,0.00019178,2]
[364981274,1749377443755,-480.0,0.00019178,2]
[364981276,1749377443764,-480.0,0.00019178,2]
[364981278,1749377443773,-3635.33,0.00019178,2]
[364981279,1749377443782,-480.0,0.00019178,2]
[364981281,1749377443791,-480.0,0.00019178,2]
[364981283,1749377443800,-150.0,0.00019178,2]
[364981285,1749377443810,-445.5830162,0.00019178,2]
[364981287,1749377443819,-480.0,0.00019178,2]
[364981289,1749377443828,-536.67,0.00019178,2]
[364981291,1749377443837,-480.0,0.00019178,2]
[364981293,1749377443846,-654.05,0.00019178,2]
[364981295,1749377443855,-150.0,0.00019178,2]
[364981297,1749377443866,-480.0,0.00019178,2]
[364981299,1749377443876,-480.0,0.00019178,2]
[364981301,1749377443885,-150.0,0.00019178,2]
[364981303,1749377443895,-150.0,0.00019178,2]
[364981305,1749377443904,-480.0,0.00019178,2]
[364981307,1749377443913,-406.88735591,0.00019178,2]
[364981309,1749377443923,-500.0,0.00019178,2]
[364981311,1749377443932,-480.0,0.00019178,2]
[364981313,1749377443942,-1162.98,0.00019178,2]
[364981315,1749377443953,-354.18,0.00019178,2]
[364981317,1749377443962,-150.0,0.00019178,2]
[364981318,1749377443971,-163.99,0.00019178,2]
[364981320,1749377443980,-150.0,0.00019178,2]
[364981322,1749377443989,-150.0,0.00019178,2]